[Event "GER-chT Youth Countries 2018"]
[Site "Wurzburg"]
[Date "2018.10.03"]
[Round "2"]
[White "Kageler, Anton Paul"]
[Black "Mundt, Alexandra"]
[Result "1-0"]
[ECO "B02"]
[WhiteElo "1459"]
[BlackElo "1679"]
[Annotator "NA"]
[PlyCount "71"]
[EventDate "2018.10.02"]
[EventType "team-tourn"]
[EventCountry "GER"]
[SourceTitle "playchess.com"]
[Source "ChessBase"]
[SourceQuality "1"]
[TimeControl "40/5400+30:1800+30"]

1. e4 {[%emt 0:00:00]} Nf6 {[%emt 0:00:00]} 2. Nc3 {[%emt 0:00:00]} d5 {[%emt 0:00:00]} 3. e5 {[%emt 0:00:40]} d4 {[%emt 0:00:00]} 4. exf6 {[%emt 0:01:51]} dxc3 {[%emt 0:00:00]} 5. bxc3 {[%emt 0:00:08]} gxf6 {[%emt 0:00:15]} 6. d4 {[%emt 0:00:49]} e5 {[%emt 0:00:33]} 7. Bc4 {[%emt 0:02:01]} Nc6 {[%emt 0:05:03]} 8. Ne2 {[%emt 0:12:39]} Bf5 {[%emt 0:08:06]} 9. O-O {[%emt 0:01:53]} Qd7 {[%emt 0:08:42]} 10. Be3 {[%emt 0:04:47]} O-O-O {[%emt 0:10:35]} 11. Rb1 {[%emt 0:03:50]} Rg8 {[%emt 0:09:16]} 12. Qc1 {[%emt 0:07:46]} Na5 {[%emt 0:08:38]} 13. Bb5 {[%emt 0:12:09]} c6 {[%emt 0:06:26]} 14. Ba4 {[%emt 0:01:30]} Be7 {[%emt 0:03:31]} 15. Bb3 {[%emt 0:02:29]} Nxb3 {[%emt 0:07:17]} 16. Rxb3 {[%emt 0:04:42]} Be6 {[%emt 0:01:13]} 17. Rb1 {[%emt 0:01:34]} Bc4 {[%emt 0:00:53]} 18. Re1 {[%emt 0:04:09]} Bxe2 {[%emt 0:02:25]} 19. Rxe2 {[%emt 0:00:58]} Qg4 {[%emt 0:13:05]} 20. Qf1 {[%emt 0:01:52]} h5 {[%emt 0:03:51]} 21. dxe5 {[%emt 0:04:07]} fxe5 {[%emt 0:00:54]} 22. Bxa7 {[%emt 0:00:21]} e4 {[%emt 0:01:49]} 23. Re3 {[%emt 0:01:53]} Bd6 {[%emt 0:02:11]} 24. Rbe1 {[%emt 0:03:46]} f5 {[%emt 0:00:50]} 25. Kh1 {[%emt 0:07:06]} Rg6 {[%emt 0:02:22]} 26. Bc5 {[%emt 0:04:28]} Bf4 {[%emt 0:02:49]} 27. R3e2 {[%emt 0:00:47]} Bd2 {[%emt 0:01:46]} 28. Rd1 {[%emt 0:01:02]} Bxc3 {[%emt 0:00:20]} 29. Rxd8+ {[%emt 0:00:36]} Kxd8 {[%emt 0:00:09]} 30. f3 {[%emt 0:03:39]} exf3 {[%emt 0:01:24]} 31. Qd1+ {[%emt 0:00:49]} Bd4 {[%emt 0:00:04]} 32. Bxd4 {[%emt 0:03:29]} fxe2 {[%emt 0:01:01]} 33. Bf6+ {[%emt 0:01:26]} Ke8 {[%emt 0:00:15]} 34. Qd8+ {[%emt 0:00:05]} Kf7 {[%emt 0:00:20]} 35. Qe7+ {[%emt 0:00:05]} Kg8 {[%emt 0:00:15]} 36. Qe8+ {[%emt 0:00:07]} 1-0

[Event "GER-chT Youth Countries 2018"]
[Site "Wurzburg"]
[Date "2018.10.03"]
[Round "2"]
[White "Fischer, Darja"]
[Black "Pohle, Saskia"]
[Result "1-0"]
[ECO "C48"]
[WhiteElo "1456"]
[BlackElo "1690"]
[Annotator "NA"]
[PlyCount "97"]
[EventDate "2018.10.02"]
[EventType "team-tourn"]
[EventCountry "GER"]
[SourceTitle "playchess.com"]
[Source "ChessBase"]
[SourceQuality "1"]
[TimeControl "40/5400+30:1800+30"]

1. e4 {[%emt 0:00:00]} e5 {[%emt 0:00:00]} 2. Nf3 {[%emt 0:00:00]} Nc6 {[%emt 0:00:00]} 3. Nc3 {[%emt 0:00:00]} Nf6 {[%emt 0:00:00]} 4. Bb5 {[%emt 0:00:00]} Nd4 {[%emt 0:02:51]} 5. O-O {[%emt 0:00:00]} Nxb5 {[%emt 0:04:51]} 6. Nxb5 {[%emt 0:00:09]} d6 7. d3 {[%emt 0:01:47]} Be7 {[%emt 0:01:08]} 8. Be3 {[%emt 0:01:17]} O-O {[%emt 0:01:21]} 9. h3 {[%emt 0:01:52]} a6 {[%emt 0:02:53]} 10. Nc3 {[%emt 0:00:08]} h6 {[%emt 0:00:16]} 11. Re1 {[%emt 0:02:40]} Be6 {[%emt 0:01:47]} 12. d4 {[%emt 0:02:45]} exd4 {[%emt 0:03:05]} 13. Nxd4 {[%emt 0:00:56]} Bd7 {[%emt 0:00:33]} 14. Qd2 {[%emt 0:01:56]} Nh7 {[%emt 0:08:10]} 15. Re2 {[%emt 0:03:59]} f5 {[%emt 0:03:26]} 16. exf5 {[%emt 0:02:24]} Bxf5 {[%emt 0:01:27]} 17. Rae1 {[%emt 0:01:57]} Bg5 {[%emt 0:06:30]} 18. Bxg5 {[%emt 0:01:17]} Qxg5 {[%emt 0:00:36]} 19. Qxg5 {[%emt 0:01:04]} Nxg5 {[%emt 0:00:07]} 20. Nxf5 {[%emt 0:01:17]} Rxf5 {[%emt 0:00:15]} 21. Re7 {[%emt 0:00:40]} Rf7 {[%emt 0:01:40]} 22. Kf1 {[%emt 0:04:43]} Kf8 {[%emt 0:03:15]} 23. Rxf7+ {[%emt 0:02:36]} Nxf7 {[%emt 0:00:46]} 24. Re4 {[%emt 0:04:33]} Ne5 {[%emt 0:03:56]} 25. f4 {[%emt 0:02:30]} Nc6 {[%emt 0:00:13]} 26. Nd5 {[%emt 0:01:05]} Rc8 {[%emt 0:01:39]} 27. Ke2 {[%emt 0:00:29]} Na7 {[%emt 0:02:14]} 28. Kd3 {[%emt 0:02:14]} c6 {[%emt 0:00:58]} 29. Nc3 {[%emt 0:00:27]} Re8 {[%emt 0:04:09]} 30. g4 {[%emt 0:02:27]} Rxe4 {[%emt 0:05:18]} 31. Kxe4 {[%emt 0:02:42]} Kf7 {[%emt 0:00:09]} 32. h4 {[%emt 0:01:21]} Nc8 {[%emt 0:01:02]} 33. h5 {[%emt 0:04:53]} Nb6 {[%emt 0:01:42]} 34. b3 {[%emt 0:00:59]} Nd7 {[%emt 0:00:20]} 35. Kf5 {[%emt 0:01:06]} d5 {[%emt 0:03:34]} 36. g5 {[%emt 0:02:21]} Nc5 {[%emt 0:06:33]} 37. Ke5 {[%emt 0:01:42]} Ne6 {[%emt 0:01:51]} 38. gxh6 {[%emt 0:01:01]} gxh6 {[%emt 0:00:11]} 39. Ne2 {[%emt 0:00:22]} Ng7 {[%emt 0:13:04]} 40. Ng3 {[%emt 0:01:59]} Ke7 {[%emt 0:00:48]} 41. a4 {[%emt 0:33:01]} a5 {[%emt 0:31:17]} 42. Nf5+ {[%emt 0:01:21]} Nxf5 {[%emt 0:00:17]} 43. Kxf5 {[%emt 0:00:03]} Kf7 {[%emt 0:00:09]} 44. Ke5 {[%emt 0:01:32]} Ke7 {[%emt 0:00:08]} 45. c4 {[%emt 0:01:44]} dxc4 {[%emt 0:07:39]} 46. bxc4 {[%emt 0:00:05]} b5 {[%emt 0:03:18]} 47. cxb5 {[%emt 0:00:09]} cxb5 {[%emt 0:00:08]} 48. axb5 {[%emt 0:00:03]} a4 {[%emt 0:00:03]} 49. Kd4 {[%emt 0:00:17]} 1-0

[Event "GER-chT Youth Countries 2018"]
[Site "Wurzburg"]
[Date "2018.10.03"]
[Round "2"]
[White "Ruhmke, Rebecca"]
[Black "Kluehs, Gustaf"]
[Result "0-1"]
[ECO "B30"]
[WhiteElo "1399"]
[BlackElo "1775"]
[Annotator "NA"]
[PlyCount "44"]
[EventDate "2018.10.02"]
[EventType "team-tourn"]
[EventCountry "GER"]
[SourceTitle "playchess.com"]
[Source "ChessBase"]
[SourceQuality "1"]
[TimeControl "40/5400+30:1800+30"]

1. e4 {[%emt 0:00:00]} c5 {[%emt 0:00:00]} 2. Nf3 {[%emt 0:00:20]} Nc6 {[%emt 0:00:00]} 3. Bc4 {[%emt 0:01:54]} e6 {[%emt 0:00:00]} 4. d4 {[%emt 0:02:34]} cxd4 {[%emt 0:00:00]} 5. Nxd4 {[%emt 0:01:44]} Nf6 {[%emt 0:00:08]} 6. Bg5 {[%emt 0:06:50]} Qa5+ {[%emt 0:00:48]} 7. Bd2 {[%emt 0:11:59]} Qc5 {[%emt 0:00:58]} 8. Bd3 {[%emt 0:11:12]} Qxd4 {[%emt 0:00:39]} 9. Bc3 {[%emt 0:00:03]} Qb6 {[%emt 0:00:10]} 10. O-O {[%emt 0:04:40]} Be7 {[%emt 0:00:15]} 11. Kh1 {[%emt 0:02:41]} d6 {[%emt 0:00:51]} 12. Nd2 {[%emt 0:07:08]} Ne5 {[%emt 0:02:44]} 13. f4 {[%emt 0:11:39]} Neg4 {[%emt 0:01:52]} 14. Qf3 {[%emt 0:02:23]} e5 {[%emt 0:05:47]} 15. Nc4 {[%emt 0:06:25]} Qc5 {[%emt 0:01:15]} 16. f5 {[%emt 0:04:28]} b5 {[%emt 0:01:23]} 17. b3 {[%emt 0:13:16]} bxc4 {[%emt 0:01:01]} 18. Bxc4 {[%emt 0:00:37]} Qe3 {[%emt 0:00:19]} 19. Bd3 {[%emt 0:06:47]} Qxf3 {[%emt 0:00:31]} 20. Rxf3 {[%emt 0:00:16]} Bb7 {[%emt 0:00:44]} 21. Re1 {[%emt 0:02:53]} d5 {[%emt 0:00:32]} 22. Rg3 {[%emt 0:00:28]} dxe4 {[%emt 0:00:43]} 0-1

[Event "GER-chT Youth Countries 2018"]
[Site "Wurzburg"]
[Date "2018.10.03"]
[Round "2"]
[White "Nguyen, Jenny Ha-Linh"]
[Black "Schulz, Hannah"]
[Result "0-1"]
[ECO "B13"]
[WhiteElo "1230"]
[BlackElo "1527"]
[Annotator "NA"]
[PlyCount "66"]
[EventDate "2018.10.02"]
[EventType "team-tourn"]
[EventCountry "GER"]
[SourceTitle "playchess.com"]
[Source "ChessBase"]
[SourceQuality "1"]
[TimeControl "40/5400+30:1800+30"]

1. e4 {[%emt 0:00:00]} c6 {[%emt 0:00:00]} 2. d4 {[%emt 0:00:00]} d5 {[%emt 0:00:00]} 3. exd5 {[%emt 0:00:00]} cxd5 {[%emt 0:00:00]} 4. c4 {[%emt 0:00:00]} Nc6 {[%emt 0:02:04]} 5. Nf3 {[%emt 0:01:18]} Bg4 {[%emt 0:01:14]} 6. Be2 {[%emt 0:02:39]} Nf6 {[%emt 0:02:44]} 7. Nc3 {[%emt 0:02:02]} g6 {[%emt 0:04:27]} 8. O-O {[%emt 0:04:23]} Bg7 {[%emt 0:00:58]} 9. Be3 {[%emt 0:04:44]} O-O {[%emt 0:01:44]} 10. h3 {[%emt 0:00:43]} Be6 {[%emt 0:00:31]} 11. cxd5 {[%emt 0:08:46]} Nxd5 {[%emt 0:01:11]} 12. Rc1 {[%emt 0:06:45]} Nxc3 {[%emt 0:03:48]} 13. Rxc3 {[%emt 0:00:58]} Nb4 {[%emt 0:01:47]} 14. a3 {[%emt 0:02:21]} Nd5 {[%emt 0:01:19]} 15. Rc1 {[%emt 0:00:40]} Qb6 {[%emt 0:01:56]} 16. Qd2 {[%emt 0:02:35]} Nxe3 {[%emt 0:05:27]} 17. fxe3 {[%emt 0:00:18]} Rad8 {[%emt 0:03:07]} 18. Bd3 {[%emt 0:06:04]} Bh6 {[%emt 0:02:56]} 19. Qe2 {[%emt 0:07:16]} Bd7 {[%emt 0:06:40]} 20. Bc4 {[%emt 0:09:53]} Bf5 {[%emt 0:02:38]} 21. Qf2 {[%emt 0:07:43]} Be6 {[%emt 0:09:31]} 22. Bxe6 {[%emt 0:02:44]} Qxe6 {[%emt 0:00:47]} 23. Rfe1 {[%emt 0:00:28]} Rc8 {[%emt 0:06:32]} 24. Rcd1 {[%emt 0:03:14]} Qb3 {[%emt 0:00:30]} 25. Rd2 {[%emt 0:05:29]} Rc7 {[%emt 0:00:43]} 26. Rde2 {[%emt 0:04:09]} Rfc8 {[%emt 0:01:12]} 27. Ne5 {[%emt 0:06:17]} f6 {[%emt 0:02:32]} 28. Nf3 {[%emt 0:00:15]} Rc2 {[%emt 0:00:23]} 29. Rxc2 {[%emt 0:00:14]} Rxc2 {[%emt 0:00:21]} 30. Qf1 {[%emt 0:00:26]} Rxb2 {[%emt 0:02:05]} 31. e4 {[%emt 0:01:02]} Be3+ {[%emt 0:00:45]} 32. Kh1 {[%emt 0:00:09]} Rf2 {[%emt 0:00:20]} 33. Qg1 {[%emt 0:00:32]} Rxf3 {[%emt 0:00:33]} 0-1

[Event "GER-chT Youth Countries 2018"]
[Site "Wurzburg"]
[Date "2018.10.03"]
[Round "2"]
[White "Praus, Pia-Rosa"]
[Black "Hubert, Charlotte"]
[Result "0-1"]
[ECO "D00"]
[WhiteElo "1150"]
[BlackElo "1376"]
[Annotator "NA"]
[PlyCount "96"]
[EventDate "2018.10.02"]
[EventType "team-tourn"]
[EventCountry "GER"]
[SourceTitle "playchess.com"]
[Source "ChessBase"]
[SourceQuality "1"]
[TimeControl "40/5400+30:1800+30"]

1. d4 {[%emt 0:00:00]} d5 {[%emt 0:00:00]} 2. Bf4 {[%emt 0:00:09]} Nf6 {[%emt 0:00:21]} 3. e3 {[%emt 0:00:25]} e6 {[%emt 0:01:30]} 4. c3 {[%emt 0:01:04]} Nbd7 {[%emt 0:02:55]} 5. Nd2 {[%emt 0:01:12]} b6 {[%emt 0:02:56]} 6. Ngf3 {[%emt 0:03:09]} Bb7 {[%emt 0:01:45]} 7. Bd3 {[%emt 0:00:27]} Be7 {[%emt 0:03:26]} 8. Qc2 {[%emt 0:01:14]} c5 {[%emt 0:03:11]} 9. Ne5 {[%emt 0:04:46]} O-O {[%emt 0:06:51]} 10. Ndf3 {[%emt 0:02:21]} Rc8 {[%emt 0:18:27]} 11. O-O {[%emt 0:05:39]} Ne4 {[%emt 0:12:59]} 12. Bb5 {[%emt 0:02:21]} Ndf6 {[%emt 0:02:55]} 13. Bd3 {[%emt 0:02:33]} c4 {[%emt 0:04:18]} 14. Be2 {[%emt 0:00:54]} Nh5 {[%emt 0:05:31]} 15. Bg3 {[%emt 0:02:13]} Nhxg3 {[%emt 0:02:58]} 16. hxg3 {[%emt 0:00:46]} Qc7 {[%emt 0:03:54]} 17. Nd2 {[%emt 0:10:49]} Nxd2 {[%emt 0:01:36]} 18. Qxd2 {[%emt 0:00:29]} b5 {[%emt 0:02:40]} 19. Rfc1 {[%emt 0:01:19]} f6 {[%emt 0:03:27]} 20. Nf3 {[%emt 0:00:43]} Qb6 {[%emt 0:00:51]} 21. b3 {[%emt 0:03:02]} cxb3 {[%emt 0:02:09]} 22. axb3 {[%emt 0:00:07]} a6 {[%emt 0:02:29]} 23. b4 {[%emt 0:01:09]} Rc6 {[%emt 0:01:23]} 24. Qd3 {[%emt 0:01:10]} Rfc8 {[%emt 0:01:15]} 25. Qd2 {[%emt 0:00:40]} Qc7 {[%emt 0:00:40]} 26. Ra3 {[%emt 0:00:14]} Bxb4 {[%emt 0:00:59]} 27. Rb3 {[%emt 0:00:59]} Bxc3 {[%emt 0:00:46]} 28. Qa2 {[%emt 0:00:28]} b4 {[%emt 0:02:19]} 29. Qb1 {[%emt 0:00:30]} a5 {[%emt 0:01:58]} 30. Bb5 {[%emt 0:00:52]} Rb6 {[%emt 0:00:30]} 31. Ba4 {[%emt 0:00:14]} Bc6 {[%emt 0:01:11]} 32. Rcxc3 {[%emt 0:01:23]} bxc3 {[%emt 0:01:03]} 33. Rxb6 {[%emt 0:00:07]} Bxa4 {[%emt 0:00:46]} 34. Rb7 {[%emt 0:01:06]} Qc6 {[%emt 0:00:26]} 35. Rb8 {[%emt 0:02:04]} c2 {[%emt 0:01:42]} 36. Rxc8+ {[%emt 0:00:14]} Qxc8 {[%emt 0:00:04]} 37. Qc1 {[%emt 0:00:16]} Bb3 {[%emt 0:01:22]} 38. Nd2 {[%emt 0:00:28]} Qb7 {[%emt 0:00:06]} 39. Qb2 {[%emt 0:01:10]} a4 {[%emt 0:00:39]} 40. Kh2 {[%emt 0:00:42]} Qb4 {[%emt 0:00:31]} 41. Nf3 {[%emt 0:31:07]} a3 {[%emt 0:30:39]} 42. Qc1 {[%emt 0:00:11]} a2 {[%emt 0:02:01]} 43. Qb2 {[%emt 0:00:09]} Qa4 {[%emt 0:00:44]} 44. Qa1 {[%emt 0:01:00]} Qa3 {[%emt 0:01:02]} 45. Qc3 {[%emt 0:00:22]} c1=Q {[%emt 0:00:26]} 46. Qd3 {[%emt 0:01:49]} Bc4 {[%emt 0:01:20]} 47. Qxa3 {[%emt 0:00:16]} Qxa3 {[%emt 0:00:09]} 48. Kh3 {[%emt 0:00:36]} a1=Q {[%emt 0:00:48]} 0-1

[Event "GER-chT Youth Countries 2018"]
[Site "Wurzburg"]
[Date "2018.10.04"]
[Round "3"]
[White "Parvanyan, Ashot"]
[Black "Nothnagel, Marian Can"]
[Result "1/2-1/2"]
[ECO "C41"]
[WhiteElo "2428"]
[BlackElo "2341"]
[Annotator "NA"]
[PlyCount "96"]
[EventDate "2018.10.03"]
[EventType "team-tourn"]
[EventCountry "GER"]
[SourceTitle "playchess.com"]
[Source "ChessBase"]
[SourceQuality "1"]
[TimeControl "40/5400+30:1800+30"]

{[%evp 46,94,93,51,45,43,66,31,70,0,0,-18,-31,-108,-114,-94,15,29,0,0,0,-150,-75,-70,-96,-200,0,0,0,-38,-38,-35,-36,-39,-54,-124,-90,-91,-85,-93,-100,-102,-16,-11,-11,-14,0,0,0,0,0]} 1. e4 {[%emt 0:00:00]} e5 {[%emt 0:00:00]} 2. Nf3 {[%emt 0:00:00]} d6 {[%emt 0:00:00]} 3. d4 {[%emt 0:00:15]} exd4 {[%emt 0:00:00]} 4. Nxd4 {[%emt 0:00:07]} Nf6 {[%emt 0:00:00]} 5. Nc3 {[%emt 0:00:07]} Be7 {[%emt 0:00:00]} 6. g3 {[%emt 0:01:10]} O-O {[%emt 0:01:41]} 7. Bg2 {[%emt 0:00:32]} Nc6 {[%emt 0:00:06]} 8. O-O {[%emt 0:00:17]} Bg4 {[%emt 0:03:37] C41: Philidor Defence} (8... Nxd4 9. Qxd4 Be6 10. Bf4 Re8 11. Rad1 Qc8 12. Rfe1 Bh3 13. Bh1 Nd7 14. Nd5 Bf8 15. Bd2 Ne5 16. f4 {½-½ (37) Ragger,M (2659)-Schneider,I (2506) Germany 2017}) 9. Nxc6 {[%emt 0:00:41]} bxc6 {[%emt 0:00:07]} 10. Qd3 {[%emt 0:00:04]} Nd7 {[%emt 0:02:30]} 11. f4 {[%emt 0:06:51]} Rb8 $146 {[%emt 0:14:26]} ({Predecessor:} 11... Nc5 12. Qe3 Qd7 13. f5 f6 14. Qf4 {1-0 (49) Kabanov,N (2468)-Tsoi,D (2382) Voronezh 2018}) 12. Re1 {[%emt 0:12:56]} Nc5 {[%emt 0:11:32]} 13. Qd2 {[%emt 0:00:24]} Re8 {[%emt 0:01:36]} 14. h3 {[%emt 0:05:18]} Bd7 {[%emt 0:00:39]} 15. b3 {[%emt 0:03:23]} Bf6 {[%emt 0:02:59]} 16. Ba3 {[%emt 0:01:30]} Ne6 {[%emt 0:08:12]} 17. Rad1 {[%emt 0:03:25]} Be7 {[%emt 0:24:34]} 18. Kh2 {[%emt 0:03:49]} Nf8 {[%emt 0:02:55]} 19. Qf2 {[%emt 0:08:20]} a5 {[%emt 0:02:49]} 20. Bb2 {[%emt 0:07:29]} Qc8 {[%emt 0:01:29]} 21. Ne2 {[%emt 0:03:39]} Ng6 {[%emt 0:04:40]} 22. a4 {[%emt 0:03:37]} c5 {[%emt 0:00:33]} 23. Ba1 {[%emt 0:04:34]} Bc6 {[%emt 0:03:31]} 24. Nc3 {[%emt 0:03:06]} Bf6 {[%emt 0:04:30]} 25. e5 {[%emt 0:11:23]} Bxg2 {[%emt 0:00:06]} 26. Kxg2 {[%emt 0:00:12]} dxe5 {[%emt 0:00:22]} 27. f5 {[%emt 0:00:19]} Ne7 {[%emt 0:00:44]} 28. g4 {[%emt 0:00:16] [#]} c4 $1 {[%emt 0:01:24]} 29. Ne4 {[%emt 0:04:42]} (29. bxc4 $15 Rb4 30. Qc5) 29... cxb3 {[%emt 0:01:18]} 30. cxb3 {[%emt 0:00:42]} Qb7 {[%emt 0:03:23]} ({Black should try} 30... Rxb3 $17 31. Kh2 Nc6) 31. Kh2 $1 {[%emt 0:03:12]} Nd5 {[%emt 0:00:15]} 32. g5 {[%emt 0:00:28]} Be7 $1 {[%emt 0:00:08]} 33. g6 {[%emt 0:10:47] [#]} (33. Qg3 $11 Bb4 34. Rg1) 33... fxg6 {[%emt 0:01:53]} (33... f6 $1 $19 34. gxh7+ Kh8) 34. fxg6 {[%emt 0:00:25]} hxg6 {[%emt 0:00:15]} 35. Qg3 {[%emt 0:01:12] [#]} (35. Bxe5 $17 {keeps fighting.} Bb4 36. Ng5) 35... Bb4 $2 {[%emt 0:02:40]} (35... Qc6 $1 $19 36. Bxe5 Bb4) 36. Qxg6 {[%emt 0:01:45]} Qb6 {[%emt 0:00:46]} 37. Qxb6 {[%emt 0:00:47]} Rxb6 {[%emt 0:00:40]} 38. Rg1 {[%emt 0:00:38]} Nf6 {[%emt 0:00:44]} 39. Nxf6+ {[%emt 0:00:33]} Rxf6 {[%emt 0:00:05]} 40. Rd5 {[%emt 0:00:31]} (40. Rg5 $15) 40... c6 {[%emt 0:01:26]} 41. Rd7 {[%emt 0:08:20]} Rf7 {[%emt 0:00:12]} 42. Rxf7 {[%emt 0:00:10]} Kxf7 {[%emt 0:00:07]} 43. Kg2 {[%emt 0:00:02]} e4 {[%emt 0:10:04]} (43... Ke6 $17 44. Kf3 Be7) 44. Kf1 {[%emt 0:00:07]} g6 {[%emt 0:02:14]} 45. Ke2 {[%emt 0:00:34]} Re6 {[%emt 0:01:11]} 46. Rg4 {[%emt 0:05:30]} Ke7 {[%emt 0:00:35]} 47. Bd4 $11 {[%emt 0:00:40]} Kd6 {[%emt 0:02:01]} 48. Rg5 {[%emt 0:05:24]} c5 {[%emt 0:06:48]} 1/2-1/2

[Event "GER-chT Youth Countries 2018"]
[Site "Wurzburg"]
[Date "2018.10.04"]
[Round "3"]
[White "Muckle, Julius"]
[Black "Kuznecovs, Nikita"]
[Result "1-0"]
[ECO "E47"]
[WhiteElo "2348"]
[BlackElo "2226"]
[Annotator "NA"]
[PlyCount "107"]
[EventDate "2018.10.03"]
[EventType "team-tourn"]
[EventCountry "GER"]
[SourceTitle "playchess.com"]
[Source "ChessBase"]
[SourceQuality "1"]
[TimeControl "40/5400+30:1800+30"]

1. d4 {[%emt 0:00:00] Sagar Shah} Nf6 {[%emt 0:00:00]} 2. c4 {[%emt 0:00:00]} e6 {[%emt 0:00:00]} 3. Nc3 {[%emt 0:00:00]} Bb4 {[%emt 0:00:00]} 4. e3 {[%emt 0:00:00]} O-O {[%emt 0:00:00]} 5. Bd3 {[%emt 0:00:00]} c5 {[%emt 0:00:04]} 6. Nf3 {[%emt 0:00:00]} b6 {[%emt 0:00:05]} 7. O-O {[%emt 0:00:01]} Bb7 {[%emt 0:00:05]} 8. a3 {[%emt 0:04:29]} Bxc3 {[%emt 0:00:06]} 9. bxc3 {[%emt 0:00:02]} d6 {[%emt 0:03:36]} 10. Qc2 {[%emt 0:03:45]} Bxf3 {[%emt 0:24:39] E43: Nimzo-Indian: Rubinstein: 4...b6} 11. gxf3 {[%emt 0:00:01]} e5 {[%emt 0:00:07]} 12. a4 $146 {[%emt 0:09:45]} ({Predecessor:} 12. d5 Re8 13. a4 a5 14. Kg2 Nbd7 15. Bd2 Nf8 16. Rh1 Nh5 17. Rag1 Qf6 18. Bf5 {0-1 (64) Gevorgyan,D (2374)-Kryvoruchko,Y (2697) Abu Dhabi 2015 EXT 2016 [Sagar Shah]}) 12... h6 {[%emt 0:22:29]} 13. a5 {[%emt 0:01:01]} cxd4 {[%emt 0:01:41]} 14. axb6 {[%emt 0:01:25]} Qxb6 {[%emt 0:00:05]} 15. Rb1 {[%emt 0:00:32]} Qc6 {[%emt 0:00:33]} 16. cxd4 {[%emt 0:01:02]} Qxf3 {[%emt 0:03:00]} 17. Be2 {[%emt 0:05:16]} Qc6 {[%emt 0:00:47]} 18. f4 {[%emt 0:08:17]} e4 {[%emt 0:15:29]} 19. Ba3 {[%emt 0:07:15]} Rc8 {[%emt 0:04:54]} 20. Qd2 {[%emt 0:08:11]} Nbd7 {[%emt 0:06:01]} 21. Qb4 {[%emt 0:02:52]} Nb6 {[%emt 0:02:56]} 22. Rfc1 {[%emt 0:02:49]} Qd7 {[%emt 0:00:22]} 23. Kg2 {[%emt 0:03:46]} d5 {[%emt 0:00:26]} 24. c5 {[%emt 0:06:00] [#]} Nc4 $1 {[%emt 0:00:06]} 25. Rb3 {[%emt 0:03:09] [#]} Rab8 $1 {[%emt 0:12:40]} 26. Qxb8 {[%emt 0:02:59]} Rxb8 {[%emt 0:00:02]} (26... Nxe3+ $19 27. Kh1 Rxb8 28. Rxb8+ Kh7) 27. Rxb8+ {[%emt 0:00:12]} Kh7 {[%emt 0:00:04]} 28. Rb3 {[%emt 0:00:27]} g5 {[%emt 0:01:22]} 29. fxg5 {[%emt 0:00:54] [#]} Ng4 $1 {[%emt 0:00:58]} ({Less strong is} 29... hxg5 30. Rf1 $15) 30. g6+ {[%emt 0:02:42]} Kxg6 {[%emt 0:01:06]} ({Not} 30... fxg6 31. Rcb1 $15) 31. Rg1 {[%emt 0:07:56]} Kh7 $2 {[%emt 0:00:14]} ({Black should try} 31... Ncxe3+ $19 32. Kh3 Kh7 33. Rxg4 (33. Bxg4 $2 Nxg4 34. Kg3 h5 $19) 33... Nxg4 34. Bxg4 f5) 32. Bc1 $1 {[%emt 0:00:22]} Qf5 {[%emt 0:00:35]} (32... h5 $17) 33. Rf1 {[%emt 0:00:59]} Qh5 {[%emt 0:01:19]} 34. h3 {[%emt 0:02:17] [#]} (34. Bxg4 $1 $11 {and White is okay.} Qxg4+ 35. Kh1) 34... Ngxe3+ $1 {[%emt 0:00:19]} 35. Rxe3 {[%emt 0:00:10]} Nxe3+ {[%emt 0:00:03]} 36. Kf2 {[%emt 0:00:05]} Qxh3 $2 {[%emt 0:01:15]} (36... Qf5+ $19 37. Kxe3 Qxh3+ 38. Kf2 Qh2+ 39. Ke1 Qg3+ 40. Kd2 Qb3 $17 41. Rxf7+ Kg6 42. Rxa7 e3+ 43. Ke1 Qc3+ 44. Kd1 Qxd4+ 45. Ke1 Qxc5 46. Ra6+ Kg5) 37. Bxe3 {[%emt 0:00:07]} f5 {[%emt 0:00:20]} 38. c6 {[%emt 0:00:47]} f4 $2 {[%emt 0:00:40]} (38... Qh2+ $11 {and Black stays safe.} 39. Ke1 Qg3+ 40. Kd2 Qc7) 39. Bxf4 {[%emt 0:00:13]} Qh4+ {[%emt 0:00:31]} 40. Ke3 {[%emt 0:00:24]} Qh3+ {[%emt 0:00:18]} 41. Kd2 {[%emt 0:35:05]} Qa3 {[%emt 0:08:44] [#]} 42. Rc1 $1 {[%emt 0:00:00]} Qb4+ {[%emt 0:01:57]} 43. Ke3 {[%emt 0:00:00]} Qa3+ {[%emt 0:00:03]} 44. Kf2 {[%emt 0:00:00]} Qf8 {[%emt 0:00:03] [#]} 45. Kg3 $1 {[%emt 0:00:00]} Qa3+ {[%emt 0:04:29]} 46. Kg2 {[%emt 0:00:00]} e3 {[%emt 0:06:54]} 47. Rg1 {[%emt 0:00:00]} Qb2 $18 {[%emt 0:02:30]} 48. Kf3 {[%emt 0:00:00]} Qxd4 {[%emt 0:00:18]} 49. c7 {[%emt 0:00:00]} Qe4+ {[%emt 0:02:10]} 50. Kg3 {[%emt 0:00:00]} Qc2 {[%emt 0:02:31]} 51. Bd3+ {[%emt 0:00:00]} Qxd3 {[%emt 0:00:07]} 52. c8=Q {[%emt 0:00:00]} Qg6+ {[%emt 0:04:44]} 53. Kh2 {[%emt 0:00:00]} Qc2+ {[%emt 0:00:19]} 54. Qxc2+ 1-0